Cogmind - Beta 16 @@@ ROGUE MODE // 2025.12.28 @ 15:32:52 Player: tanukistars115 Result: Destroyed by Y-45 Defender with Beam Rifle Performance ------------- Evolutions (1) 500 Regions Visited (4) 800 Robots Destroyed (27) 135 Value Destroyed (726) 726 Prototype IDs (3) 60 Alien Tech Used (0) 0 Bonus (138) 138 TOTAL SCORE: 2359 Bonus ------- Follower Combat Kills 138 Cogmind --------- Core Integrity 0/400 Matter 173/300 Energy 100/100 System Corruption 0% Temperature Cool (9) Movement Walking (540) Ox6 Location -9/Storage Parts ------- > --- POWER (1) -------- (None) > --- PROPULSION (2) --- Improved Aluminum Leg > --- UTILITY (3) ------ Huge Storage Unit Experimental Targeting Computer > --- WEAPON (3) ------- Improved Assault Rifle Improved Assault Rifle > --- INVENTORY (25) --- Grenade Launcher Grenade Launcher Peak State ------------ > --- POWER ------------ (None) > --- PROPULSION ------- Improved Aluminum Leg Carbon-fiber Leg > --- UTILITY ---------- Experimental Targeting Computer Bomb Drone Bay > --- WEAPON ----------- Improved Assault Rifle Improved Assault Rifle Improved Assault Rifle > --- INVENTORY -------- Huge Storage Unit Grenade Launcher Grenade Launcher [Rating: 34] Favorites ----------- Power Improved Ion Engine Engine Improved Ion Engine Power Core Light Nuclear Core Propulsion Aluminum Leg Treads Light Treads Leg Aluminum Leg Utility Huge Storage Unit Device Heat Sink Storage Huge Storage Unit Processor Experimental Targeting Computer Protection Core Shielding Weapon Improved Assault Rifle Energy Gun Medium Laser Ballistic Gun Improved Assault Rifle Launcher Grenade Launcher Build | -11 -10 -10 -9 -9 ------- Run | Yrd Mat Min Mat Sto Slots Evolved 2 | . . . 2 . Power . | . . . . . Propulsion . | . . . . . Utility 1 | . . . 1 . Weapon 1 | . . . 1 . Parts Attached 25 | 5 6 . 1 13 Power 3 | 1 1 . . 1 Engine 2 | 1 . . . 1 Core 1 | . 1 . . . Reactor . | . . . . . Propulsion 9 | 2 1 . . 6 Treads 2 | . . . . 2 Leg 7 | 2 1 . . 4 Wheel . | . . . . . Hover . | . . . . . Flight . | . . . . . Utility 6 | . 2 . 1 3 Device 2 | . 1 . . 1 Storage 1 | . . . 1 . Processor 1 | . . . . 1 Hackware . | . . . . . Protection 2 | . 1 . . 1 Artifact . | . . . . . Weapon 7 | 2 2 . . 3 Energy Gun 2 | 2 . . . . Energy Cannon . | . . . . . Ballistic Gun 4 | . 1 . . 3 Ballistic Cannon . | . . . . . Launcher 1 | . 1 . . . Special Weapon . | . . . . . Impact Weapon . | . . . . . Slashing Weapon . | . . . . . Piercing Weapon . | . . . . . Special Melee Weapon . | . . . . . Unidentified Prototypes 3 | . . . . 3 Parts Lost 15 | . 2 . 7 6 Power 2 | . . . 1 1 Propulsion 5 | . 1 . 2 2 Utility 4 | . . . 2 2 Weapon 4 | . 1 . 2 1 Highest Loss Streak 7 | . 2 . 7 2 To Critical Strikes . | . . . . . Average Backups 1 | . 1 1 1 1 Power . | . . . . . Propulsion . | . . . . . Utility . | . . 1 1 . Weapon . | . . . . . Tool/Special . | . . . . . Unused Backups 2 | . . . . 2 Power . | . . . . . Propulsion . | . . . . . Utility . | . . . . . Weapon 2 | . . . . 2 Tool/Special . | . . . . . Average Slot Usage (%) 74 | . 93 100 81 64 Engine 4 | . 5 . . 6 Core 3 | . 8 14 10 . Leg 15 | . 24 28 19 10 Device 7 | . 13 14 9 5 Storage 8 | . . . 11 10 Processor 3 | . . . . 5 Protection 6 | . 13 14 10 2 Energy Gun 3 | . 18 . . . Ballistic Gun 17 | . 5 14 10 22 Launcher 2 | . 2 14 9 . Peak Build Rating 34 | 5 9 10 11 34 Average Rating 16 | 3 7 9 10 20 On Entrance 5 | . 5 9 10 2 Avg Prop Armor Cover (%) 5 | . . . . 5 Naked Turns . | . . . . . Heaviest Build 104 | 9 11 11 91 104 Greatest Support 40 | 20 20 20 20 40 Greatest Overweight (x) 34 | 2 . . 26 34 Average Overweight (x) 3 | . . . 4 8 Largest Inventory Capacity 25 | 5 5 5 25 25 Average Capacity 19 | 5 5 5 25 24 Most Carried 6 | 2 5 3 2 6 Average Carried 1 | . 1 2 2 1 Final Capacity 25 | 5 5 5 25 25 Final Carried 3 | . 1 3 2 2 Class Distribution -------------------- 57% | Mutant 27% | Gunner 14% | Scavenger-Gunner Dominant Class ---------------- Mutant | -10/Materials Mutant | -10/Mines Mutant | -9/Materials Gunner | -9/Storage Resources | -11 -10 -10 -9 -9 ----------- Run | Yrd Mat Min Mat Sto Matter Collected 653 | 249 118 . . 286 Remotely . | . . . . . Salvage Created 963 | . 205 . . 758 Parts 60 | . 14 . . 46 Haulers Intercepted . | . . . . . Recyclers Shooed 1 | . . . . 1 Parts Field Recycled . | . . . . . Retrieved Matter . | . . . . . Parts Self-Destructed . | . . . . . Prevented . | . . . . . Parts Restored . | . . . . . Kills | -11 -10 -10 -9 -9 ------- Run | Yrd Mat Min Mat Sto Combat Hostiles Destroyed 24 | . 6 . . 18 Guns 24 | . 6 . . 18 Classes Destroyed 6 | . 2 . . 4 Worker 1 | . . . . 1 Builder 1 | . . . . 1 Watcher 1 | . . . . 1 Swarmer 9 | . 3 . . 6 Grunt 10 | . 3 . . 7 Sentry 5 | . . . . 5 Best Kill Streak 8 | . 3 . . 8 Combat Bots Only 5 | . 3 . . 5 Max Kills in Single Turn 2 | . 1 . . 2 Gunslinging 1 | . . . . 1 Exploded . | . . . . . Melee . | . . . . . Uniques/NPCs Destroyed . | . . . . . Combat | -11 -10 -10 -9 -9 -------- Run | Yrd Mat Min Mat Sto Hostile Shots Fired 239 | . 51 . 73 115 Missed 65 | . 16 . 14 35 Hits 174 | . 35 . 59 80 Projectile 174 | . 35 . 59 80 Critical Strikes 1 | . 1 . . . Actively Blocked 1 | . 1 . . . Damage Taken 2243 | . 299 . 744 1200 Core 438 | . 38 . 300 100 Absorbed by Shields . | . . . . . Redirected to Shielding 51 | . 8 . 43 . Core Remaining (%) 92 | 100 . 84 . . Volleys Fired 54 | . 21 . 2 31 Largest 3 | . 2 . 2 3 Hottest 90 | . 90 . 50 69 Shots Fired 134 | . 38 . 4 92 Gun 132 | . 38 . 2 92 Cannon . | . . . . . Launcher 2 | . . . 2 . Special . | . . . . . Kinetic 97 | . 3 . 2 92 Thermal 20 | . 20 . . . Explosive 2 | . . . 2 . Electromagnetic 15 | . 15 . . . Robot Hit Streak 14 | . 7 . 2 14 Robot Miss Streak 5 | . 5 . 2 3 Penetration Max . | . . . . . Secondary Targets 8 | . 1 . . 7 Max Gunslinging Chain 2 | . 1 . . 2 Shots Hit Robots 84 | . 19 . 2 63 Core Hits 44 | . 11 . 2 31 Critical Kills 1 | . . . . 1 Critical Parts Destroyed . | . . . . . Critical Strikes 2 | . 1 . . 1 Burn 1 | . 1 . . . Destroy 1 | . . . . 1 Melee Attacks . | . . . . . Impact . | . . . . . Slashing . | . . . . . Piercing . | . . . . . Sneak Attacks . | . . . . . Combat Hostiles . | . . . . . Follow-up Attacks . | . . . . . Damage Inflicted 1292 | . 236 4 88 964 Guns 1206 | . 236 . 7 963 Cannons . | . . . . . Explosions 81 | . . . 81 . Melee . | . . . . . Ramming 5 | . . 4 . 1 Kinetic 985 | . 15 . 7 963 Thermal 141 | . 141 . . . Explosive 81 | . . . 81 . Electromagnetic 80 | . 80 . . . Impact . | . . . . . Slashing . | . . . . . Piercing . | . . . . . Highest Corruption . | . . . . . Average Corruption . | . . . . . Corruption Purged . | . . . . . Corruption Blocked . | . . . . . Overload Shots . | . . . . . Overflow Damage . | . . . . . Projectiles . | . . . . . Explosions . | . . . . . Melee . | . . . . . Knockbacks . | . . . . . Impact . | . . . . . Kinetic . | . . . . . Secondary . | . . . . . Self-Inflicted Damage 16 | . . . 16 . Shots 1 | . . . 1 . Rammed 1 | . . . . 1 Targets Rammed 2 | . . 1 . 1 Kicked 1 | . . 1 . . Crushed . | . . . . . Highest Temperature 54 | . 54 . 41 48 Average Temperature 14 | . 15 . 23 13 Received Heat Transfer 786 | . 54 . 402 330 Siege Activations . | . . . . . Martial Activations . | . . . . . Shielding Activations . | . . . . . Robots Disrupted . | . . . . . Combat Hostiles . | . . . . . Robots Corrupted . | . . . . . Combat Hostiles . | . . . . . Parts Fried . | . . . . . Impact Corruptions . | . . . . . Robots Melted . | . . . . . Combat Hostiles . | . . . . . Parts Melted . | . . . . . Heat Transferred 481 | . 481 . . . Parts Sabotaged . | . . . . . Parts Stolen . | . . . . . Parts Stripped . | . . . . . Power Chain Reactions . | . . . . . Alert | -11 -10 -10 -9 -9 ------- Run | Yrd Mat Min Mat Sto Maximum Alert Level . | . . . . . Low Security (%) 100 | 100 100 100 100 100 Level 1 . | . . . . . Level 2 . | . . . . . Level 3 . | . . . . . Level 4 . | . . . . . Level 5 . | . . . . . High Security . | . . . . . Max Security . | . . . . . Peak Influence 196 | . 95 5 15 196 Initial 5 | . . 5 . . Average 60 | . 33 1 . 86 Influence Increases 765 | . 178 . 15 572 Destroy 0b10 Robot/C 560 | . 120 . . 440 Destroy 0b10 Robot/NC 20 | . . . . 20 Destroy Leader 122 | . 30 . . 92 Allied During Kill 12 | . . . . 12 Successful Hack 20 | . 13 . . 7 Disable Machine 15 | . 15 . . . Destroy Structure 16 | . . . 15 1 Influence Decreases 601 | . 164 14 15 408 Entered New Map 9 | . . 9 . . Time Decay 462 | . 144 5 5 308 Lost Part 90 | . 20 . 10 60 Lost Ally 40 | . . . . 40 Squads Dispatched 9 | . 2 . 1 6 Investigation 1 | . 1 . . . Extermination . | . . . . . Reinforcement 2 | . 1 . 1 . Assault 2 | . . . . 2 Garrison 4 | . . . . 4 Intercept . | . . . . . Searches Triggered . | . . . . . Construction Impeded . | . . . . . Haulers Reinforced . | . . . . . Active Scanning Responses . | . . . . . Cargo Convoy Interrupts . | . . . . . Stealth | -11 -10 -10 -9 -9 --------- Run | Yrd Mat Min Mat Sto Distress Signals 1 | . . . . 1 Communications Jammed . | . . . . . Distress Signals . | . . . . . Times Spotted 44 | . 8 . 6 30 Peak Tracking Total 7 | . 4 . 5 7 Tactical Retreats . | . . . . . Traps | -11 -10 -10 -9 -9 ------- Run | Yrd Mat Min Mat Sto Traps Triggered 4 | . 3 . . 1 Indirectly . | . . . . . Trap Hack Attempts . | . . . . . Triggered . | . . . . . Disarmed . | . . . . . Reprogrammed . | . . . . . Reused . | . . . . . Traps Extracted . | . . . . . Installed . | . . . . . Triggered . | . . . . . Machines | -11 -10 -10 -9 -9 ---------- Run | Yrd Mat Min Mat Sto Machines Disabled 1 | . 1 . . . Max in Single Turn 1 | . 1 . . . Machines Repaired . | . . . . . Machines Dismantled . | . . . . . Machines Sabotaged . | . . . . . Overloaded Fab Kills . | . . . . . Hacking | -11 -10 -10 -9 -9 --------- Run | Yrd Mat Min Mat Sto Machines Accessed 6 | . 3 1 . 2 Terminals 2 | . 1 . . 1 Fabricators . | . . . . . Repair Stations 1 | . 1 . . . Recycling Units 1 | . 1 . . . Scanalyzers . | . . . . . Garrison Access 1 | . . . . 1 Total Hacks 17 | . 13 1 . 3 Successful 9 | . 7 1 . 1 Failed 8 | . 6 . . 2 Catastrophic 1 | . 1 . . . Database Lockouts . | . . . . . Manual . | . . . . . Terminals 4 | . 3 . . 1 Fabricators . | . . . . . Repair Stations 3 | . 3 . . . Recycling Units 7 | . 7 . . . Scanalyzers . | . . . . . Garrison Access 2 | . . . . 2 Terminal Hacks 4 | . 2 1 . 1 Record 2 | . 2 . . . Open Door 2 | . . 1 . 1 Fabricator Hacks . | . . . . . Repair Station Hacks 1 | . 1 . . . Scan Component 1 | . 1 . . . Recycling Unit Hacks 4 | . 4 . . . Recycle Component 1 | . 1 . . . Process 2 | . 2 . . . Retrieve Components 1 | . 1 . . . Scanalyzer . | . . . . . Garrison Access Hacks . | . . . . . Unauthorized Hacks . | . . . . . Terminals . | . . . . . Fabricators . | . . . . . Repair Stations . | . . . . . Recycling Units . | . . . . . Scanalyzers . | . . . . . Garrison Access . | . . . . . Data Cores Recovered . | . . . . . Used . | . . . . . Hacking Detections 4 | . 2 . . 2 Full Trace Events 2 | . 2 . . . Feedback Events . | . . . . . Feedback Blocked . | . . . . . Robot Schematics Acquired . | . . . . . Robots Built . | . . . . . Authchips . | . . . . . Time . | . . . . . Total Robot Build Rating . | . . . . . Part Schematics Acquired . | . . . . . Parts Built . | . . . . . Authchips . | . . . . . Time . | . . . . . Total Part Build Rating . | . . . . . Part Studies Acquired . | . . . . . Parts Repaired . | . . . . . Time . | . . . . . Parts Recycled 1 | . 1 . . . Recycled Matter 160 | . 160 . . . Retrieved Matter . | . . . . . Retrieved Components . | . . . . . Parts Scanalyzed . | . . . . . Part Schematics Acquired . | . . . . . Parts Damaged . | . . . . . Bothacking | -11 -10 -10 -9 -9 ------------ Run | Yrd Mat Min Mat Sto Used RIF Installer . | . . . . . Robots Hacked . | . . . . . Non-combat . | . . . . . Combat . | . . . . . Robot Hacks Applied . | . . . . . Relay Couplers Released . | . . . . . Fabnet Peak Effective % . | . . . . . Robots Rewired . | . . . . . Allies Hacked . | . . . . . Hacks Repelled . | . . . . . Allies | -11 -10 -10 -9 -9 -------- Run | Yrd Mat Min Mat Sto Total Allies 2 | . . . . 2 Largest Group 2 | . . . . 2 Highest-Rated Group 62 | . . . . 62 Highest-Rated Ally 31 | . . . . 31 Total Orders . | . . . . . Ally Attacks 18 | . . . . 18 Total Damage 265 | . . . . 265 Kills 5 | . . . . 5 Allies Corrupted . | . . . . . Allies Melted . | . . . . . Intel | -11 -10 -10 -9 -9 ------- Run | Yrd Mat Min Mat Sto Active Infowar (turns) . | . . . . . Robot Analysis Total . | . . . . . Derelict Logs Recovered . | . . . . . Drone Launches 1 | . . . . 1 Drone Recoveries . | . . . . . Exploration | -11 -10 -10 -9 -9 ------------- Run | Yrd Mat Min Mat Sto Turns Passed 2285 | 60 447 70 293 1415 Spaces Moved 661 | 46 273 57 68 217 Core 60 | 16 6 . 2 36 Treads 27 | . . . . 27 Legs 574 | 30 267 57 66 154 Wheels . | . . . . . Hover . | . . . . . Flight . | . . . . . Fastest Speed 50 | 50 50 120 400 120 Average Speed 304 | 109 118 120 440 585 Slowest Speed 1750 | 150 120 120 1350 1750 Overloaded Moves . | . . . . . Propulsion Burnouts . | . . . . . Robots Hopped . | . . . . . Potential Cave-ins . | . . . . . Cave-ins Triggered . | . . . . . Exploration Rate (%) 18 | 3 28 15 13 31 Regions Visited 4 Branch Regions 2 Pre-discovered Areas . | . . . . . Known Exits Taken . | . . . . . Unknown Exits Taken 4 | 1 1 1 1 . Scrap Searched . | . . . . . Spaces Dug . | . . . . . Terrain Destroyed 13 | . . . 13 . Melee . | . . . . . Projectile . | . . . . . AOE 13 | . . . 13 . Terrain Rammed . | . . . . . Walls Destroyed . | . . . . . Machines Disabled . | . . . . . Actions | -11 -10 -10 -9 -9 --------- Run | Yrd Mat Min Mat Sto Total 831 | 55 356 58 70 292 Wait 44 | . 39 . . 5 Move 657 | 45 272 56 67 217 Hop . | . . . . . Pick Up 30 | 5 10 1 . 14 Fast Attach 3 | . 3 . . . Attach 27 | 5 7 . 1 14 Detach 4 | . . . . 4 Swap 6 | . 3 . . 3 Drop 4 | . 1 . . 3 Fire 54 | . 21 . 2 31 Melee . | . . . . . Ram . | . . . . . Kick 1 | . . 1 . . Crush 1 | . . . . 1 Escape Stasis . | . . . . . Rewire . | . . . . . Trap . | . . . . . Miscellaneous . | . . . . . Route ------- -11/Scrapyard -10/Materials -10/Mines -9/Materials -9/Storage History --------- Turn | Location | Event 7 | -11/Scrapyard | Discovered new exit (range 15) 61 | -11/Scrapyard | Entered Materials 307 | -10/Materials | Build established: Mutant 496 | -10/Materials | Discovered new exit (range 11) 508 | -10/Materials | Entered Mines 512 | -10/Mines | Found the Drone Emporium 517 | -10/Mines | Found Prototype Device 562 | -10/Mines | Discovered new exit (range 13) 578 | -10/Mines | Entered Materials 578 | -9/Materials | Evolved 2 slots: Utility x1, Weapon x1 834 | -9/Materials | Discovered new exit (range 6) 866 | -9/Materials | Core integrity fell below 50% 871 | -9/Materials | Entered Storage 871 | -9/Storage | Identified Bomb Drone Bay 896 | -9/Storage | Lost 7 parts (1p2n2u2w) 1234 | -9/Storage | Met a pair of Derelict thieves 1299 | -9/Storage | Garrison activated, responded to threat 1473 | -9/Storage | Core integrity fell below 20% 1585 | -9/Storage | Found Prototype Processor 1588 | -9/Storage | Identified Exp. Targeting Computer 1628 | -9/Storage | Build established: Gunner 2128 | -9/Storage | Build established: Scavenger-Gunner 2192 | -9/Storage | Garrison activated, responded to threat 2286 | -9/Storage | Destroyed by Y-45 Defender with Beam Rifle Last Messages --------------- K-01 Serf collects debris. Y-45 Defender destroyed. R-06 Scavenger collects Flight Unit. Bomb Drone released from Bomb Drone Bay. K-01 Serf collects debris. Bomb Drone sneak attacks. Bomb Drone detonates. Bomb Drone destroyed. S-10 Pest destroyed. Bomb Drone Bay destroyed. R-06 Scavenger collects Lgt. Assault Rifle. K-01 Serf collects debris. R-06 Scavenger collects Lgt. Assault Rifle. The unstable cave ceiling collapses. K-01 Serf collects debris. The unstable cave ceiling collapses. K-01 Serf collects debris. G-34 Mercenary destroyed. Carbon-fiber Leg destroyed. Imp. Assault Rifle destroyed. Map ----- +----------------------------------------------------+ | | | | | | | | | ?????????????????????????????????????????????????? | | ?????????????????????????????????????????????????? | | ?????????????????????????????????????????????????? | | ?????????????????????????????????????????????????? | | ?????????????????????????????????????????????????? | | ?????????????????????????????????????????????????? | | ?????????????????????????????????????????????????? | | ?????????????????????????????????????????????????? | | ?????????????????????????????????????????????????? | | ?????????????????????????????????????????????????? | | ?????????????????????????????????????????????????? | | ?????????????????????????????????????????????????? | | ?????????????????????????????????????????????????? | | ?????????????????????????????????????????????????? | | ????????????????????###??????????????????????????? | | ????????????????????# ??????????????????????????? | | ????????????????????# ??????????????????????????? | | ??????????????####### "??????????????????????????? | | ??????????????# # "??????????????????????????? | | ??????????????# # "??????????????????????????? | | ??????????????# = %"?"""" #???????????????????? | | ??????????????# # """@ #???????????????????? | | ??????????????+ # Y #???????????????????? | | ??????????????## ## #???????????????????? | | ???????????????# ###########???????????????????? | | ???????????????# #?????????????????????????????? | | ???????????????# #?????????????????????????????? | | ???????????????# #?????????????????????????????? | | ???????????????# #?????????????????????????????? | | ???????????????# #?????????????????????????????? | | ???????????????# #?????????????????????????????? | | ##?????????????# #???? #???????????????????????? | | #???########### #??"" ""??????????????????????? | | =#???# ## # """ R??????????????????????? | | [#???# ##%= + """ ""??????????????????????? | | !#???# """"" ##= # """ ##??????????????????????? | | #???# "???" ## # #???????????????????????? | | ]#???# "??"" # + #???????????????????????? | | ##???# ""??" #???????????????????????? | | ###### "???" # #???????????????????????? | | ]![# """"" # #???????????????????????? | | " ![# #???????????????????????? | | ![#+###+### = #####???????????????????????? | | " # =% #???????????????????? | | + [ [ % % #???????????????????? | | # ! [ %% #???????????????????? | +----------------------------------------------------+ Best States ------------- Heat Dissipation 38 Energy Generation 14 Energy Capacity 265 Matter Stores 300 Matter Capacity 300 Sight Range 16 Terrain Scan Density 10 Armor Coverage 150 Core Shielding 20 Evasion (%) 55 Targeting Accuracy 12 Recoil Reduction 2 Item Schematics ----------------- None Robot Schematics ------------------ None Fabricated ------------ Nothing Repaired ---------- Nothing Studied --------- None Alien Tech Used ----------------- None Achievements -------------- That Tickles Challenges ------------ None Game ------ Seed HackingCompositeMesh Manual? 0 Play Time 00:13:43 Cumulative 3.5 hours Start 2025.12.28 @ 15:19:21 End 2025.12.28 @ 15:32:52 Sessions 1 Manual Loads 0 Difficulty Rogue Special Mode None Game No. 10 Rogue 10 Adventurer 0 Explorer 0 Win Type - Total 0 Types 0/0/0/0/0/0/0/0/0/0 Lore% 4 Gallery% 8 Achievement% 10 Wizard Run 0 Options --------- Layout 1 ASCII 1 Keyboard 0 Movement Mouse Keybinds 0 Fullscreen 2 Font 32/SmallcapsGlow Map View 50x35 Zoom Use 0% Tactical HUD 0 Map Filters NONE Filters NONE Steam 1 RUN: fe0f8693-154c-4400-946b-d5943ddb18c5